fUST/lending_fUST_20250916
["ID","MTS","AMOUNT","RATE_DAILY","PERIOD"]
[385692145,1757973039331,-500.0,0.00023673,2]
[385692146,1757973039340,-502.08173503,0.00023673,2]
[385692147,1757973039350,-500.0,0.00023673,2]
[385692148,1757973039364,-500.0,0.00023673,2]
[385692149,1757973039374,-501.06059311,0.00023673,2]
[385692150,1757973039384,-598.03792352,0.00023673,2]
[385692151,1757973039394,-555.7741542,0.00023673,2]
[385692152,1757973039405,-500.39823134,0.00023673,2]
[385692153,1757973039416,-500.0,0.00023673,2]
[385692154,1757973039426,-500.0,0.00023673,2]
[385692155,1757973039437,-500.1783756,0.00023673,2]
[385692156,1757973039448,-174.53655471,0.00023673,2]
[385692157,1757973039459,-500.0,0.00023673,2]
[385692158,1757973039469,-500.0,0.00023673,2]
[385692159,1757973039480,-500.0,0.00023673,2]
[385692160,1757973039491,-500.0,0.00023673,2]
[385692161,1757973039501,-500.0,0.00023673,2]
[385692162,1757973039511,-500.0,0.00023673,2]
[385692163,1757973039521,-202.73440977,0.00023673,2]
[385692164,1757973039532,-515.31866317,0.00023673,2]
[385692165,1757973039541,-500.0,0.00023673,2]
[385692166,1757973039555,-500.0,0.00023673,2]
[385692167,1757973039566,-155.38232104,0.00023673,2]
[385692168,1757973039575,-500.0,0.00023673,2]
[385692169,1757973039585,-500.0,0.00023673,2]
[385692170,1757973039595,-500.0,0.00023673,2]
[385692171,1757973039604,-500.52912716,0.00023673,2]
[385692172,1757973039616,-160.79332558,0.00023673,2]
[385692173,1757973039625,-500.0,0.00023673,2]
[385692174,1757973039635,-500.32845412,0.00023673,2]
[385692175,1757973039643,-500.0,0.00023673,2]
[385692176,1757973039652,-500.0,0.00023673,2]
[385692177,1757973039661,-500.0,0.00023673,2]
[385692178,1757973039670,-500.0,0.00023673,2]
[385692179,1757973039679,-500.0,0.00023673,2]
[385692180,1757973039688,-500.0,0.00023673,2]
[385692181,1757973039697,-500.0,0.00023673,2]
[385692182,1757973039706,-500.0,0.00023673,2]
[385692183,1757973039715,-500.0,0.00023673,2]
[385692184,1757973039724,-160.0,0.00023684,2]
[385692185,1757973039733,-781.6,0.00023703,2]
[385692186,1757973039743,-179.16,0.00023703,2]
[385692187,1757973039751,-179.16,0.00023703,2]
[385692188,1757973039760,-179.16,0.00023703,2]
[385692189,1757973039769,-179.16,0.00023703,2]
[385692190,1757973039779,-179.14,0.00023703,2]
[385692191,1757973039788,-266.62826521,0.00023724,2]
[385692192,1757973039797,-300.0,0.00023737,20]
[385692193,1757973039806,-300.0,0.00023737,20]
[385692194,1757973039816,-300.0,0.00023737,20]
[385692195,1757973039825,-300.0,0.00023737,20]
[385692196,1757973039834,-300.0,0.00023737,20]
[385692197,1757973039843,-300.0,0.00023737,20]
[385692198,1757973039852,-300.0,0.00023737,20]
[385692199,1757973039861,-300.0,0.00023737,20]
[385692200,1757973039870,-300.0,0.00023737,20]
[385692201,1757973039880,-300.0,0.00023737,20]
[385692202,1757973039889,-300.0,0.00023737,20]
[385692203,1757973039898,-300.0,0.00023737,20]
[385692204,1757973039908,-300.0,0.00023737,20]
[385692205,1757973039917,-300.0,0.00023737,20]
[385692206,1757973039927,-300.0,0.00023737,20]
[385692207,1757973039936,-1500.0,0.00023968,2]
[385692208,1757973039945,-520.14480571,0.00023968,2]
[385692209,1757973039955,-1500.0,0.00023968,2]
[385692210,1757973039964,-1294.6127472,0.00023968,2]
[385692211,1757973039973,-1500.0,0.00023968,2]
[385692212,1757973039982,-1500.0,0.00023968,2]
[385692213,1757973039991,-186.63389238,0.00024,2]
[385692214,1757973040001,-217.82061966,0.00024,7]
[385692215,1757973040010,-160.0,0.00024,7]
[385692216,1757973040019,-233.24851325,0.00024,7]
[385692217,1757973040028,-847.45018724,0.00024,7]
[385692218,1757973040038,-500.76948217,0.00024018,2]
[385692219,1757973040047,-10592.81255375,0.00024108,2]
[385692220,1757973040056,-500.0,0.00024139,2]
[385692221,1757973040065,-500.0,0.00024139,2]
[385692222,1757973040074,-500.0,0.00024139,2]
[385692223,1757973040083,-2500.0,0.00024164,2]
[385692224,1757973040092,-1000.0,0.00024164,2]
[385692225,1757973040101,-990.18785629,0.00024164,2]
[385692226,1757973040110,-503.62831199,0.00024164,2]
[385692227,1757973040118,-2000.0,0.00024164,2]
[385692228,1757973040127,-2500.0,0.00024164,2]
[385692229,1757973040136,-600.0,0.00024211,20]
[385692230,1757973040146,-1000.0,0.00024221,2]
[385692231,1757973040155,-1000.0,0.00024221,2]
[385692232,1757973040164,-1000.0,0.00024221,2]
[385692233,1757973040173,-501.78850623,0.00024221,2]
[385692234,1757973040182,-1000.0,0.00024221,2]
[385692235,1757973040191,-1000.0,0.00024221,2]
[385692236,1757973040201,-500.08724029,0.00024221,2]
[385692237,1757973040210,-500.67998248,0.00024221,2]
[385692238,1757973040219,-1000.0,0.00024221,2]
[385692239,1757973040228,-1000.0,0.00024221,2]
[385692240,1757973040237,-1000.0,0.00024221,2]
[385692241,1757973040246,-1003.13183178,0.00024221,2]
[385692242,1757973040254,-1000.34979336,0.00024221,2]
[385692243,1757973040263,-1000.0,0.00024221,2]
[385692244,1757973040272,-1000.0,0.00024221,2]
[385692245,1757973040281,-500.23749209,0.00024221,2]
[385692246,1757973040290,-500.35433187,0.00024221,2]
[385692247,1757973040299,-507.78243757,0.00024221,2]
[385692248,1757973040308,-500.72497296,0.00024221,2]
[385692249,1757973040317,-500.81987614,0.00024221,2]
[385692250,1757973040325,-1000.0,0.00024221,2]
[385692251,1757973040334,-1000.0,0.00024221,2]
[385692252,1757973040343,-549.04545887,0.00024221,2]
[385692253,1757973040353,-1000.0,0.00024221,2]
[385692254,1757973040365,-501.09002697,0.00024221,2]
[385692255,1757973040374,-260.0,0.00024232,2]
[385692256,1757973040383,-709.93147421,0.00024242,2]
[385692257,1757973040393,-160.0,0.00024268,3]
[385692258,1757973040403,-160.0,0.00024298,2]
[385692259,1757973040412,-217.82061966,0.00024298,2]
[385692260,1757973040421,-160.0,0.00024298,2]
[385692261,1757973040432,-160.0,0.00024298,2]
[385692262,1757973040441,-160.0,0.00024298,2]
[385692263,1757973040450,-160.0,0.00024298,2]
[385692264,1757973040460,-847.45018724,0.00024298,2]
[385692265,1757973040469,-233.24851325,0.00024298,2]
[385692266,1757973040478,-186.63389238,0.000243,2]
[385692268,1757973040487,-386.79143653,0.00024435,2]
[385692269,1757973040497,-22662.95,0.000245,7]
[385692270,1757973040506,-280.10211624,0.00024516,2]
[385692272,1757973040516,-2000.0,0.00024516,2]
[385692274,1757973040526,-2000.0,0.00024516,2]
[385692276,1757973040534,-2000.0,0.00024516,2]
[385692278,1757973040543,-150.52853011,0.00024657,2]
[385692280,1757973040552,-160.0,0.00024657,3]
[385692282,1757973040562,-232.23319811,0.00024657,3]
[385692284,1757973040571,-480.0,0.00024657,3]
[385692286,1757973040582,-480.0,0.00024657,3]
[385692287,1757973040592,-480.0,0.00024657,3]
[385692290,1757973040604,-480.0,0.00024657,3]
[385692292,1757973040614,-480.0,0.00024657,3]
[385692294,1757973040624,-480.0,0.00024657,3]
[385692296,1757973040634,-480.0,0.00024657,3]
[385692298,1757973040643,-480.0,0.00024657,3]
[385692300,1757973040652,-507.17,0.00024657,3]
[385692301,1757973040662,-480.0,0.00024657,3]
[385692303,1757973040672,-480.0,0.00024657,3]
[385692306,1757973040682,-480.0,0.00024657,3]
[385692308,1757973040692,-480.0,0.00024657,3]
[385692310,1757973040701,-1530.86,0.00024657,3]
[385692312,1757973040712,-480.0,0.00024657,3]
[385692314,1757973040721,-280.77,0.00024657,3]
[385692316,1757973040731,-480.0,0.00024657,3]
[385692318,1757973040740,-233.24851325,0.00024657,3]
[385692320,1757973040749,-480.0,0.00024657,3]
[385692322,1757973040759,-614.13449829,0.00024657,3]
[385692324,1757973040768,-700.93,0.00024657,3]
[385692325,1757973040778,-480.0,0.00024657,3]
[385692328,1757973040788,-480.0,0.00024657,3]
[385692329,1757973040799,-480.0,0.00024657,3]
[385692332,1757973040808,-160.0,0.00024657,3]
[385692344,1757973040909,-517.51955345,0.00024657,3]
[385692346,1757973040918,-480.0,0.00024657,3]
[385692348,1757973040927,-1384.68,0.00024657,3]
[385692350,1757973040936,-480.0,0.00024657,3]
[385692352,1757973040946,-480.0,0.00024657,3]
[385692354,1757973040955,-480.0,0.00024657,3]
[385692356,1757973040965,-480.0,0.00024657,3]
[385692358,1757973040974,-548.36,0.00024657,3]
[385692360,1757973040983,-417.15472785,0.00024657,3]
[385692362,1757973040992,-480.0,0.00024657,3]
[385692364,1757973041001,-480.0,0.00024657,3]
[385692366,1757973041010,-480.0,0.00024657,3]
[385692368,1757973041019,-480.0,0.00024657,3]
[385692370,1757973041029,-1347.04,0.00024657,3]
[385692372,1757973041038,-480.0,0.00024657,3]
[385692374,1757973041047,-480.0,0.00024657,3]
[385692376,1757973041056,-495.69509768,0.00024657,3]
[385692378,1757973041065,-480.0,0.00024657,3]
[385692380,1757973041075,-160.0,0.00024657,3]
[385692382,1757973041083,-480.0,0.00024657,3]
[385692384,1757973041092,-480.0,0.00024657,3]
[385692385,1757973041102,-480.0,0.00024657,3]
[385692387,1757973041111,-847.45018724,0.00024657,3]
[385692389,1757973041121,-480.0,0.00024657,3]
[385692392,1757973041130,-480.0,0.00024657,3]
[385692393,1757973041139,-480.0,0.00024657,3]
[385692396,1757973041148,-480.0,0.00024657,3]
[385692398,1757973041157,-797.29,0.00024657,3]
[385692400,1757973041166,-160.0,0.00024657,3]
[385692401,1757973041175,-480.0,0.00024657,3]
[385692404,1757973041184,-480.0,0.00024657,3]
[385692406,1757973041197,-480.0,0.00024657,3]
[385692407,1757973041206,-480.0,0.00024657,3]
[385692409,1757973041215,-480.0,0.00024657,3]
[385692411,1757973041224,-480.0,0.00024657,3]
[385692413,1757973041233,-480.0,0.00024657,3]
[385692415,1757973041243,-500.0,0.00024658,2]
[385692417,1757973041251,-163.0,0.00024658,2]
[385692420,1757973041263,-151.0,0.00024658,2]
[385692422,1757973041272,-151.0,0.00024658,2]
[385692424,1757973041281,-163.0,0.00024658,2]
[385692426,1757973041291,-500.0,0.00024658,2]
[385692428,1757973041300,-500.85652594,0.00024687,2]
[385692430,1757973041310,-1000.0,0.00024687,2]
[385692432,1757973041319,-1000.0,0.00024687,2]
[385692434,1757973041328,-2500.0,0.00024712,2]
[385692436,1757973041337,-1087.01007973,0.00024712,2]
[385692438,1757973041347,-1000.0,0.00024768,2]
[385692440,1757973041359,-1500.0,0.00024768,2]
[385692442,1757973041368,-1500.0,0.00024768,2]
[385692443,1757973041377,-1500.0,0.00024768,2]
[385692445,1757973041386,-1500.0,0.00024768,2]
[385692447,1757973041395,-1500.0,0.00024768,2]
[385692449,1757973041406,-1500.0,0.00024768,2]
[385692451,1757973041415,-1500.0,0.00024768,2]
[385692454,1757973041424,-1500.0,0.00024768,2]
[385692456,1757973041435,-1500.0,0.00024768,2]
[385692458,1757973041444,-1500.0,0.00024768,2]
[385692460,1757973041454,-683.36758378,0.00024768,2]
[385692462,1757973041463,-1001.4159058,0.00024768,2]
[385692464,1757973041472,-360.0,0.0002478,2]
[385692466,1757973041481,-295.821047,0.00024795,2]
[385692468,1757973041490,-587.0,0.00024811,2]
[385692470,1757973041499,-587.0,0.00024811,2]
[385692472,1757973041508,-500.0,0.00024873,2]
[385692474,1757973041518,-500.0,0.00024873,2]
[385692476,1757973041527,-160.76537437,0.00024873,2]
[385692478,1757973041536,-150.0,0.00024873,2]
[385692480,1757973041545,-150.0,0.00024873,2]
[385692482,1757973041554,-500.0,0.00024897,2]
[385692483,1757973041563,-500.0,0.00024897,2]
[385692486,1757973041572,-500.0,0.00024897,2]
[385692488,1757973041581,-500.0,0.00024897,2]
[385692490,1757973041590,-500.0,0.00024897,2]
[385692492,1757973041599,-181.08010149,0.00024897,2]
[385692494,1757973041609,-500.0,0.00024897,2]
[385692496,1757973041619,-500.0,0.00024897,2]
[385692498,1757973041628,-500.0,0.00024897,2]
[385692500,1757973041637,-500.0,0.00024897,2]
[385692502,1757973041647,-1000.0,0.00024897,2]
[385692504,1757973041656,-1000.0,0.00024897,2]
[385692506,1757973041665,-151.0,0.00024897,2]
[385692508,1757973041674,-1000.0,0.00024897,2]
[385692510,1757973041683,-151.0,0.00024897,2]
[385692512,1757973041692,-383.37320078,0.00024897,2]
[385692514,1757973041701,-263.76581671,0.00024897,2]
[385692515,1757973041710,-20746.26328358,0.00024897,2]
[385692517,1757973041719,-151.0,0.000249,7]
[385692519,1757973041728,-348921.60898412,0.000249,2]
[385692985,1757973046376,-480.0,0.00024657,3]
[385692987,1757973046386,-120323.76695288,0.000249,2]
[385692989,1757973046395,-151.0,0.000249,7]
[385692991,1757973046405,-151.0,0.000249,7]
[385692993,1757973046414,-417.15472785,0.000249,7]
[385692995,1757973046424,-217.82061966,0.00024931,3]
[385692997,1757973046436,-480.0,0.00024931,3]
[385692999,1757973046445,-480.0,0.00024931,3]
[385693001,1757973046455,-480.0,0.00024931,3]
[385693003,1757973046464,-1530.86,0.00024931,3]
[385693005,1757973046473,-700.93,0.00024931,3]
[385693007,1757973046482,-480.0,0.00024931,3]
[385693009,1757973046492,-480.0,0.00024931,3]
[385693011,1757973046501,-1384.68,0.00024931,3]
[385693013,1757973046511,-480.0,0.00024931,3]
[385693015,1757973046520,-480.0,0.00024931,3]
[385693017,1757973046529,-1347.04,0.00024931,3]
[385693019,1757973046538,-480.0,0.00024931,3]
[385693021,1757973046548,-480.0,0.00024931,3]
[385693023,1757973046557,-191.02585643,0.00024931,3]
[385693025,1757973046567,-480.0,0.00024931,3]
[385693027,1757973046575,-797.29,0.00024931,3]
[385693028,1757973046585,-480.0,0.00024931,3]
[385693030,1757973046594,-480.0,0.00024931,3]
[385693032,1757973046604,-480.0,0.00024931,3]
[385693034,1757973046613,-480.0,0.00024931,3]
[385693036,1757973046623,-500.0,0.00024932,2]
[385693038,1757973046632,-151.0,0.00024932,2]
[385693040,1757973046641,-151.0,0.00024932,2]
[385693042,1757973046651,-500.0,0.00024932,2]
[385693044,1757973046660,-1435.0,0.00025047,2]
[385693046,1757973046670,-1500.0,0.00025064,2]
[385693048,1757973046679,-1500.0,0.00025064,2]
[385693050,1757973046689,-2500.0,0.00025064,2]
[385693052,1757973046698,-480.0,0.00025205,3]
[385693054,1757973046707,-198.19258445,0.00025205,3]
[385693056,1757973046716,-1530.86,0.00025205,3]
[385693058,1757973046726,-700.93,0.00025205,3]
[385693060,1757973046735,-480.0,0.00025205,3]
[385693062,1757973046744,-480.0,0.00025205,3]
[385693064,1757973046754,-1384.68,0.00025205,3]
[385693066,1757973046763,-480.0,0.00025205,3]
[385693068,1757973046772,-417.15472785,0.00025205,3]
[385693070,1757973046781,-480.0,0.00025205,3]
[385693072,1757973046791,-1347.04,0.00025205,3]
[385693073,1757973046800,-371.40229337,0.00025205,3]
[385693074,1757973046809,-480.0,0.00025205,3]
[385693075,1757973046818,-553.005163,0.00025205,3]
[385693076,1757973046827,-797.29,0.00025205,3]
[385693077,1757973046837,-480.0,0.00025205,3]
[385693078,1757973046846,-480.0,0.00025205,3]
[385693079,1757973046855,-384.11064526,0.00025205,3]
[385693080,1757973046864,-405.32966389,0.00025205,3]
[385693342,1757974033119,-516.91025288,0.00022594,2]
[385693404,1757974232688,-4933.63738471,0.00022594,2]
[385693406,1757974232698,-300.0,0.00022822,2]
[385693408,1757974232707,-300.0,0.00022822,2]
[385693410,1757974232715,-378.0,0.00022822,2]
[385693412,1757974232725,-21135.91912311,0.00022823,2]
[385693414,1757974232736,-500.0,0.00023054,2]
[385693416,1757974232745,-500.0,0.00023054,2]
[385693418,1757974232754,-500.0,0.00023054,2]
[385693420,1757974232763,-500.0,0.00023054,2]
[385693423,1757974232772,-500.0,0.00023054,2]
[385693425,1757974232782,-500.0,0.00023054,2]
[385693427,1757974232791,-500.0,0.00023054,2]
[385693428,1757974232801,-500.0,0.00023054,2]
[385693430,1757974232810,-392.36591325,0.00023054,2]
[385693432,1757974232819,-179.36732,0.00023071,2]
[385693434,1757974232828,-501.49623136,0.000233,2]
[385693436,1757974232837,-500.0,0.000233,2]
[385693438,1757974232846,-5025.6361358,0.00023349,2]
[385693440,1757974232856,-300.0,0.00023514,20]
[385693442,1757974232865,-300.0,0.00023514,20]
[385693444,1757974232874,-300.0,0.00023514,20]
[385693447,1757974232884,-300.0,0.00023514,20]
[385693450,1757974232894,-300.0,0.00023514,20]
[385693453,1757974232903,-300.0,0.00023514,20]
[385693456,1757974232913,-300.0,0.00023514,20]
[385693459,1757974232923,-300.0,0.00023514,20]
[385693461,1757974232932,-300.0,0.00023514,20]
[385693464,1757974232941,-300.0,0.00023514,20]
[385693467,1757974232950,-300.0,0.00023514,20]
[385693470,1757974232959,-300.0,0.00023514,20]
[385693488,1757974233083,-300.0,0.00023514,20]
[385693490,1757974233094,-300.0,0.00023514,20]
[385693492,1757974233104,-300.0,0.00023514,20]
[385693494,1757974233114,-600.0,0.00023514,20]
[385693496,1757974233124,-500.0,0.0002365,2]
[385693498,1757974233134,-172.974446,0.00023798,2]
[385693500,1757974233144,-1000.0,0.00023848,2]
[385693502,1757974233153,-375.54333627,0.00024198,2]
[385693504,1757974233163,-160.0,0.00024276,2]
[385693506,1757974233173,-847.45018724,0.00024276,2]
[385693508,1757974233182,-160.0,0.00024276,2]
[385693511,1757974233192,-160.0,0.00024276,2]
[385693512,1757974233201,-160.0,0.00024276,2]
[385693515,1757974233211,-233.24851325,0.00024276,2]
[385693517,1757974233221,-1500.0,0.00024396,2]
[385693519,1757974233231,-480.0,0.00024657,3]
[385693521,1757974233240,-480.0,0.00024657,3]
[385693523,1757974233249,-480.0,0.00024657,3]
[385693525,1757974233258,-420.0,0.00024779,2]
[385693527,1757974233268,-420.0,0.00024779,2]
[385693529,1757974233277,-160.0,0.000248,2]
[385693531,1757974233286,-480.0,0.00024899,3]
[385693533,1757974233295,-1211.59,0.00024899,3]
[385693534,1757974233304,-480.0,0.00024899,3]
[385693536,1757974233314,-206.65572896,0.00024899,3]
[385693538,1757974233323,-697.62,0.00024899,3]
[385693540,1757974233334,-2278.37,0.000249,7]
[385693542,1757974233343,-1339.5,0.0002493,3]
[385693544,1757974233352,-480.0,0.0002493,3]
[385693546,1757974233361,-480.0,0.0002493,3]
[385693548,1757974233371,-613.31,0.0002493,3]
[385693550,1757974233382,-1178.66,0.0002493,3]
[385693552,1757974233391,-430.70613553,0.00024931,3]
[385693554,1757974233400,-480.0,0.00024931,3]
[385693556,1757974233410,-480.0,0.00024931,3]
[385693559,1757974233420,-847.45018724,0.00024931,3]
[385693560,1757974233429,-160.0,0.00024931,3]
[385693563,1757974233440,-500.0,0.00024932,2]
[385693565,1757974233451,-260.80036818,0.00024944,2]
[385693567,1757974233460,-843.72820208,0.0002499,2]
[385693569,1757974233469,-443.70717138,0.00024995,2]
[385693571,1757974233479,-417.15472785,0.00025,10]
[385693573,1757974233488,-353.97295872,0.00025053,2]
[385693575,1757974233498,-3648.0151781,0.00025054,2]
[385693577,1757974233507,-793.7992301,0.00025054,2]
[385693579,1757974233517,-193.4096449,0.00025054,2]
[385693581,1757974233526,-11803.105007,0.00025054,2]
[385693583,1757974233539,-974.48453401,0.00025054,2]
[385694071,1757974238549,-234.80297859,0.00024964,2]
[385694073,1757974238559,-218.50651394,0.00025054,2]
[385694207,1757974246710,-330.26477998,0.00024657,3]
[385694208,1757974246874,-149.73522002,0.00024657,3]
[385694209,1757974246884,-480.0,0.00024931,3]
[385694210,1757974246893,-2356.56038913,0.00025054,2]
[385694211,1757974282666,3821.80880771,0.00028,30]
[385694212,1757974416981,1376.06567007,0.00019236,2]
[385694213,1757974795807,-700.85832986,0.00022486,2]
[385694214,1757974796320,-477.79986677,0.00022486,2]
[385694215,1757974956655,309.0,0.0002217,120]
[385694216,1757974957977,309.0,0.00023278,120]
[385694217,1757974959565,309.0,0.00024442,120]
[385694218,1757974960959,309.0,0.00025664,120]
[385694219,1757974962316,309.0,0.00026947,120]
[385694224,1757975227105,-300.0,0.00022261,2]
[385694225,1757975227126,-515.0567024,0.00022486,2]
[385694341,1757975431817,-973.57,0.00022486,2]
[385694343,1757975431829,-2207.99451736,0.00022486,2]
[385694344,1757975431841,-124.72058361,0.00022486,2]
[385694345,1757975431850,-172.974446,0.00023774,2]
[385694346,1757975431859,-178.316018,0.00023784,2]
[385694347,1757975431868,-399.92,0.000242,2]
[385694348,1757975431877,-399.92,0.000244,2]
[385694349,1757975431887,-300.0,0.00024499,2]
[385694350,1757975431896,-300.0,0.00024499,2]
[385694351,1757975431905,-3502.49360835,0.000245,2]
[385694352,1757975431916,-7596.13394015,0.000245,2]
[385694353,1757975431928,-801.15340946,0.000245,2]
[385694354,1757975431940,-5345.03316363,0.000245,2]
[385694355,1757975431951,-386.37513093,0.000245,2]
[385694357,1757975431962,-466.53666222,0.000245,2]
[385694372,1757975437956,-1072.70269994,0.000245,2]
[385694373,1757975437967,-300.64449073,0.000245,2]
[385694465,1757975445976,-45317.54701584,0.000245,2]
[385694468,1757975480672,5000.0,0.00030198,64]
[385694469,1757975507383,5000.0,0.00030198,65]
[385694475,1757975834198,591.642094,0.00027753,30]
[385694476,1757975861610,7000.0,0.00028,30]
[385694477,1757976099913,1251.00810015,0.0001,2]
[385694478,1757976285839,151.863386,0.00027892,50]
[385694480,1757976454089,-300.0,0.00023082,2]
[385694481,1757976454110,-646.10891945,0.00023083,2]
[385694482,1757976454131,-138.15316218,0.00023083,2]
[385694515,1757976632293,-982.98508551,0.00021929,2]
[385694517,1757976632304,-1460.71299444,0.00021929,2]
[385694519,1757976632313,-1114.17379044,0.00022851,2]
[385694521,1757976632322,-480.0,0.00023082,3]
[385694523,1757976632332,-480.0,0.00023082,3]
[385694525,1757976632341,-480.0,0.00023082,3]
[385694527,1757976632351,-300.0,0.00023082,2]
[385694529,1757976632360,-538.0,0.00023082,2]
[385694531,1757976632369,-300.0,0.00023082,2]
[385694533,1757976632379,-480.0,0.00023082,3]
[385694535,1757976632388,-480.0,0.00023082,3]
[385694537,1757976632398,-323.61108419,0.00023083,2]
[385694539,1757976632408,-1294.44433678,0.00023083,2]
[385694541,1757976632417,-2912.49975775,0.00023083,2]
[385694543,1757976632426,-5177.77734711,0.00023083,2]
[385694546,1757976632435,-8082.18682775,0.00023083,2]
[385694549,1757976632444,-172.974447,0.00023342,2]
[385694551,1757976632453,-480.0,0.00023356,3]
[385694554,1757976632462,-178.316018,0.00023371,2]
[385694557,1757976632471,-500.0,0.00023373,2]
[385694560,1757976632480,-500.0,0.00023373,2]
[385694563,1757976632489,-500.0,0.00023373,2]
[385694565,1757976632499,-500.0,0.00023373,2]
[385694567,1757976632509,-500.0,0.00023373,2]
[385694569,1757976632519,-503.62831199,0.00023373,2]
[385694571,1757976632529,-500.0,0.00023373,2]
[385694573,1757976632538,-500.0,0.00023373,2]
[385694575,1757976632547,-500.0,0.00023373,2]
[385694577,1757976632557,-500.0,0.00023373,2]
[385694579,1757976632566,-300.0,0.00023543,20]
[385694581,1757976632575,-300.0,0.00023543,20]
[385694583,1757976632585,-300.0,0.00023543,20]
[385694585,1757976632594,-300.0,0.00023543,20]
[385694587,1757976632603,-300.0,0.00023543,20]
[385694589,1757976632612,-300.0,0.00023543,20]
[385694591,1757976632622,-300.0,0.00023543,20]
[385694593,1757976632631,-300.0,0.00023543,20]
[385694595,1757976632641,-300.0,0.00023543,20]
[385694597,1757976632650,-300.0,0.00023543,20]
[385694599,1757976632659,-300.0,0.00023543,20]
[385694601,1757976632669,-300.0,0.00023543,20]
[385694603,1757976632679,-300.0,0.00023543,20]
[385694605,1757976632688,-300.0,0.00023543,20]
[385694607,1757976632697,-300.0,0.00023543,20]
[385694609,1757976632707,-600.0,0.00023543,20]
[385694611,1757976632716,-480.0,0.0002363,3]
[385694614,1757976632726,-480.0,0.00023904,3]
[385694616,1757976632735,-500.0,0.00023921,2]
[385694618,1757976632745,-1000.0,0.00023921,2]
[385694620,1757976632754,-1000.0,0.00023921,2]
[385694622,1757976632763,-1000.0,0.00023921,2]
[385694624,1757976632772,-794.6127472,0.00023921,2]
[385694626,1757976632782,-1000.0,0.00023921,2]
[385694628,1757976632791,-1000.0,0.00023921,2]
[385694630,1757976632801,-480.0,0.00024178,3]
[385694632,1757976632812,-239.952,0.000242,2]
[385694634,1757976632821,-10592.81255375,0.00024216,2]
[385694636,1757976632830,-500.0,0.00024273,2]
[385694638,1757976632839,-502.61682343,0.00024273,2]
[385694640,1757976632849,-310.16820964,0.00024273,2]
[385694642,1757976632857,-500.0,0.00024296,2]
[385694644,1757976632866,-500.0,0.00024296,2]
[385694645,1757976632876,-500.0,0.00024296,2]
[385694648,1757976632886,-500.0,0.00024296,2]
[385694650,1757976632895,-500.0,0.00024296,2]
[385694652,1757976632905,-500.0,0.00024296,2]
[385694654,1757976632914,-500.0,0.00024296,2]
[385694656,1757976632923,-423.25047318,0.00024296,2]
[385694658,1757976632933,-500.0,0.00024296,2]
[385694660,1757976632944,-500.0,0.00024296,2]
[385694662,1757976632953,-500.0,0.00024296,2]
[385694664,1757976632962,-374.73461661,0.00024296,2]
[385694666,1757976632972,-500.0,0.00024296,2]
[385694668,1757976632981,-464.6399541,0.00024296,2]
[385694670,1757976632991,-205.26676041,0.00024296,2]
[385694671,1757976633001,-2364.57217556,0.00024297,2]
[385694673,1757976633011,-480.0,0.00024297,3]
[385694676,1757976633020,-1347.48,0.00024297,3]
[385694678,1757976633029,-480.0,0.00024297,3]